Cogmind - Beta 17.1 @@@ ROGUE MODE // 2026.09.24 @ 23:32:59 Player: deadbabe Result: Destroyed by G-47 Trooper with Particle Gun Performance ------------- Evolutions (0) 0 Regions Visited (1) 200 Robots Destroyed (13) 65 Value Destroyed (239) 239 Prototype IDs (0) 0 Alien Tech Used (0) 0 Bonus (0) 0 TOTAL SCORE: 504 Bonus ------- None Cogmind --------- Core Integrity 0/250 Matter 283/300 Energy 68/100 System Corruption 0% Temperature Cool (18) Movement Core (400) Ox7 Location -10/Materials Parts ------- > --- POWER (1) -------- (None) > --- PROPULSION (2) --- (None) > --- UTILITY (2) ------ Large Storage Unit Seismic Detector > --- WEAPON (2) ------- Mining Laser > --- INVENTORY (15) --- Ion Engine Aluminum Leg Aluminum Leg Small Storage Unit Improved Terrain Scanner Tractor Beam Peak State ------------ > --- POWER ------------ Ion Engine > --- PROPULSION ------- Light Treads Light Treads > --- UTILITY ---------- Small Storage Unit Seismic Detector > --- WEAPON ----------- Assault Rifle Light Assault Rifle > --- INVENTORY -------- Ion Engine Aluminum Leg Aluminum Leg Improved Terrain Scanner Tractor Beam Mining Laser [Rating: 7] Favorites ----------- Power Ion Engine Engine Ion Engine Propulsion Light Treads Treads Light Treads Utility Seismic Detector Device Seismic Detector Storage Small Storage Unit Weapon Assault Rifle Ballistic Gun Assault Rifle Special Weapon Mining Laser Build | -11 -10 ------- Run | Yrd Mat Slots Evolved . | . . Power . | . . Propulsion . | . . Utility . | . . Weapon . | . . Parts Attached 9 | 6 3 Power 1 | 1 . Engine 1 | 1 . Core . | . . Reactor . | . . Propulsion 2 | 2 . Treads 2 | 2 . Leg . | . . Wheel . | . . Hover . | . . Flight . | . . Utility 3 | 2 1 Device 1 | 1 . Storage 2 | 1 1 Processor . | . . Hackware . | . . Protection . | . . Artifact . | . . Weapon 3 | 1 2 Energy Gun . | . . Energy Cannon . | . . Ballistic Gun 2 | 1 1 Ballistic Cannon . | . . Launcher . | . . Special Weapon 1 | . 1 Impact Weapon . | . . Slashing Weapon . | . . Piercing Weapon . | . . Special Melee Weapon . | . . Unidentified Prototypes . | . . Parts Lost 5 | . 5 Power 1 | . 1 Propulsion 2 | . 2 Utility . | . . Weapon 2 | . 2 Highest Loss Streak 4 | . 4 To Critical Strikes . | . . Average Backups 5 | 3 6 Power . | . 1 Propulsion 1 | 1 2 Utility 2 | . 2 Weapon . | . . Tool/Special . | . . Unused Backups 5 | . 5 Power 1 | . 1 Propulsion 2 | . 2 Utility 2 | . 2 Weapon . | . . Tool/Special . | . . Average Slot Usage (%) 84 | . 84 Engine 13 | . 13 Treads 19 | . 19 Device 14 | . 14 Storage 14 | . 14 Ballistic Gun 21 | . 21 Peak Build Rating 7 | 6 7 Average Rating 5 | 4 5 On Entrance 3 | . 6 Avg Prop Armor Cover (%) . | . . Naked Turns . | . . Heaviest Build 29 | 13 29 Greatest Support 40 | 40 40 Greatest Overweight (x) 8 | . 8 Average Overweight (x) . | . . Largest Inventory Capacity 15 | 8 15 Average Capacity 10 | 7 12 Most Carried 7 | 6 7 Average Carried 5 | 3 6 Final Capacity 15 | 8 15 Final Carried 6 | 6 6 Class Distribution -------------------- 100% | Mutant Dominant Class ---------------- Mutant | -10/Materials Resources | -11 -10 ----------- Run | Yrd Mat Matter Collected 446 | 317 129 Remotely . | . . Salvage Created 432 | 153 279 Parts 31 | 12 19 Haulers Intercepted . | . . Recyclers Shooed . | . . Parts Field Recycled . | . . Retrieved Matter . | . . Parts Self-Destructed . | . . Prevented . | . . Parts Restored . | . . Kills | -11 -10 ------- Run | Yrd Mat Combat Hostiles Destroyed 8 | . 8 Guns 8 | . 8 Classes Destroyed 6 | 3 3 Worker 1 | 1 . Builder 1 | . 1 Tunneler 2 | 2 . Recycler 1 | 1 . Swarmer 3 | . 3 Grunt 5 | . 5 Best Kill Streak 3 | 2 3 Combat Bots Only 3 | . 3 Max Kills in Single Turn 2 | 1 2 Gunslinging . | . . Exploded . | . . Melee . | . . Uniques/NPCs Destroyed . | . . Combat | -11 -10 -------- Run | Yrd Mat Hostile Shots Fired 91 | . 91 Missed 22 | . 22 Hits 69 | . 69 Projectile 69 | . 69 Critical Strikes 2 | . 2 Damage Taken 837 | . 837 Core 258 | . 258 Absorbed by Shields . | . . Core Remaining (%) 100 | 100 . Volleys Fired 69 | 19 50 Largest 2 | 1 2 Hottest 100 | 20 100 Shots Fired 93 | 19 74 Gun 92 | 19 73 Cannon . | . . Launcher . | . . Special 1 | . 1 Kinetic 92 | 19 73 Thermal 1 | . 1 Explosive . | . . Electromagnetic . | . . Robot Hit Streak 9 | 9 7 Robot Miss Streak 2 | 2 2 Penetration Max . | . . Secondary Targets 1 | . 1 Max Gunslinging Chain 1 | . 1 Shots Hit Robots 66 | 14 52 Core Hits 23 | 5 18 Critical Kills 1 | . 1 Critical Parts Destroyed 1 | . 1 Critical Strikes 2 | . 2 Destroy 2 | . 2 Melee Attacks . | . . Impact . | . . Slashing . | . . Piercing . | . . Sneak Attacks . | . . Combat Hostiles . | . . Follow-up Attacks . | . . Damage Inflicted 756 | 186 570 Guns 732 | 186 546 Cannons . | . . Explosions . | . . Melee . | . . Ramming . | . . Kinetic 732 | 186 546 Thermal 24 | . 24 Explosive . | . . Electromagnetic . | . . Impact . | . . Slashing . | . . Piercing . | . . Highest Corruption . | . . Average Corruption . | . . Corruption Purged . | . . Corruption Blocked . | . . Overload Shots . | . . Overflow Damage . | . . Projectiles . | . . Explosions . | . . Melee . | . . Knockbacks . | . . Impact . | . . Kinetic . | . . Secondary . | . . Self-Inflicted Damage . | . . Shots . | . . Rammed . | . . Targets Rammed . | . . Kicked . | . . Crushed . | . . Highest Temperature 22 | . 22 Average Temperature 9 | . 9 Received Heat Transfer 423 | . 423 Siege Activations . | . . Martial Activations . | . . Shielding Activations . | . . Robots Disrupted . | . . Combat Hostiles . | . . Robots Corrupted . | . . Combat Hostiles . | . . Parts Fried . | . . Impact Corruptions . | . . Robots Melted . | . . Combat Hostiles . | . . Parts Melted . | . . Heat Transferred 50 | . 50 Parts Sabotaged . | . . Parts Stolen . | . . Parts Stripped . | . . Power Chain Reactions . | . . Alert | -11 -10 ------- Run | Yrd Mat Maximum Alert Level . | . . Low Security (%) 100 | 100 100 Level 1 . | . . Level 2 . | . . Level 3 . | . . Level 4 . | . . Level 5 . | . . High Security . | . . Max Security . | . . Peak Influence 100 | 5 100 Initial . | . . Average 32 | . 46 Influence Increases 241 | 20 221 Destroy 0b10 Robot/C 160 | . 160 Destroy 0b10 Robot/NC 25 | 20 5 Destroy Leader 20 | . 20 Successful Hack 6 | . 6 Lose Combat Pursuer 30 | . 30 Influence Decreases 241 | 20 221 Time Decay 191 | 20 171 Lost Part 50 | . 50 Squads Dispatched . | . . Investigation . | . . Extermination . | . . Reinforcement . | . . Assault . | . . Garrison . | . . Intercept . | . . Searches Triggered . | . . Construction Impeded . | . . Haulers Reinforced . | . . Active Scanning Responses . | . . Cargo Convoy Interrupts . | . . Stealth | -11 -10 --------- Run | Yrd Mat Distress Signals . | . . Communications Jammed . | . . Distress Signals . | . . Times Spotted 14 | . 14 Peak Tracking Total 5 | . 5 Tactical Retreats 2 | . 2 Traps | -11 -10 ------- Run | Yrd Mat Traps Triggered . | . . Indirectly . | . . Trap Hack Attempts . | . . Triggered . | . . Disarmed . | . . Reprogrammed . | . . Reused . | . . Traps Extracted . | . . Installed . | . . Triggered . | . . Machines | -11 -10 ---------- Run | Yrd Mat Machines Disabled . | . . Max in Single Turn . | . . Machines Repaired . | . . Machines Dismantled . | . . Machines Sabotaged . | . . Overloaded Fab Kills . | . . Hacking | -11 -10 --------- Run | Yrd Mat Machines Accessed 1 | . 1 Terminals 1 | . 1 Fabricators . | . . Repair Stations . | . . Recycling Units . | . . Scanalyzers . | . . Garrison Access . | . . Total Hacks 5 | . 5 Successful 2 | . 2 Failed 3 | . 3 Catastrophic . | . . Database Lockouts . | . . Manual 5 | . 5 Terminals 5 | . 5 Fabricators . | . . Repair Stations . | . . Recycling Units . | . . Scanalyzers . | . . Garrison Access . | . . Terminal Hacks 2 | . 2 Robot Analysis 2 | . 2 Fabricator Hacks . | . . Repair Station Hacks . | . . Recycling Unit Hacks . | . . Scanalyzer . | . . Garrison Access Hacks . | . . Unauthorized Hacks . | . . Terminals . | . . Fabricators . | . . Repair Stations . | . . Recycling Units . | . . Scanalyzers . | . . Garrison Access . | . . Data Cores Recovered . | . . Used . | . . Hacking Detections 1 | . 1 Full Trace Events 1 | . 1 Feedback Events . | . . Feedback Blocked . | . . Robot Schematics Acquired . | . . Robots Built . | . . Authchips . | . . Time . | . . Total Robot Build Rating . | . . Part Schematics Acquired . | . . Parts Built . | . . Authchips . | . . Time . | . . Total Part Build Rating . | . . Part Studies Acquired . | . . Parts Repaired . | . . Time . | . . Parts Recycled . | . . Recycled Matter . | . . Retrieved Matter . | . . Retrieved Components . | . . Parts Scanalyzed . | . . Part Schematics Acquired . | . . Parts Damaged . | . . Bothacking | -11 -10 ------------ Run | Yrd Mat Used RIF Installer . | . . Robots Hacked . | . . Non-combat . | . . Combat . | . . Robot Hacks Applied . | . . Relay Couplers Released . | . . Fabnet Peak Effective % . | . . Robots Rewired . | . . Allies Hacked . | . . Hacks Repelled . | . . Allies | -11 -10 -------- Run | Yrd Mat Total Allies . | . . Largest Group . | . . Highest-Rated Group . | . . Highest-Rated Ally . | . . Total Orders . | . . Ally Attacks . | . . Total Damage . | . . Kills . | . . Allies Corrupted . | . . Allies Melted . | . . Intel | -11 -10 ------- Run | Yrd Mat Active Infowar (turns) 465 | 35 430 Seismic 465 | 35 430 Robot Analysis Total 2 | . 2 Derelict Logs Recovered . | . . Drone Launches . | . . Drone Recoveries . | . . Exploration | -11 -10 ------------- Run | Yrd Mat Turns Passed 617 | 187 430 Spaces Moved 236 | 87 149 Core 8 | 4 4 Treads 228 | 83 145 Legs . | . . Wheels . | . . Hover . | . . Flight . | . . Fastest Speed 50 | 50 160 Average Speed 186 | 154 204 Slowest Speed 450 | 160 450 Overloaded Moves . | . . Propulsion Burnouts . | . . Robots Hopped . | . . Potential Cave-ins . | . . Cave-ins Triggered . | . . Exploration Rate (%) 17 | 4 31 Regions Visited 1 Branch Regions . Pre-discovered Areas . | . . Known Exits Taken . | . . Unknown Exits Taken 1 | 1 . Scrap Searched . | . . Spaces Dug . | . . Terrain Destroyed . | . . Melee . | . . Projectile . | . . AOE . | . . Terrain Rammed . | . . Walls Destroyed . | . . Machines Disabled . | . . Actions | -11 -10 --------- Run | Yrd Mat Total 323 | 117 206 Wait 4 | . 4 Move 235 | 86 149 Hop . | . . Pick Up 6 | 6 . Fast Attach 7 | 6 1 Attach 1 | . 1 Detach . | . . Swap 1 | . 1 Drop . | . . Fire 69 | 19 50 Melee . | . . Ram . | . . Kick . | . . Crush . | . . Escape Stasis . | . . Rewire . | . . Trap . | . . Miscellaneous . | . . Route ------- -11/Scrapyard -10/Materials History --------- Turn | Location | Event 23 | -11/Scrapyard | Discovered new exit (range 15) 188 | -11/Scrapyard | Entered Materials 303 | -10/Materials | Build established: Mutant 385 | -10/Materials | Core integrity fell below 50% 605 | -10/Materials | Core integrity fell below 20% 618 | -10/Materials | Destroyed by G-47 Trooper with Particle Gun Last Messages --------------- Tier: 1 G-series grunts serve as low-level frontline combat units, of sturdy construction but with fairly weak armament. Internal systems are not as protected as they could be, to enable rapid repair in the field, but this also makes them somewhat susceptible to additional damage from electromagnetic attacks. Grunts patrol in groups, or sometimes operate alone as hauler escorts to protect those with more valuable cargo. 00464_ K-01 Serf collects debris. 00538_ G-34 Mercenary destroyed. 00550_ Acquired 16 matter. 00553_ K-01 Serf cleans the Pressure Siphon. 00557_ G-34 Mercenary suffers critical hit (Destroy). 00557_ Destroyed Sml. Laser. 00565_ Assault Rifle destroyed. 00565_ Critical hit (Burn: +37). 00571_ K-01 Serf collects debris. 00574_ Critical hit (Burn: +37). 00595_ Lgt. Assault Rifle destroyed. 00597_ Lgt. Treads destroyed. 00606_ Ion Engine destroyed. Map ----- +----------------------------------------------------+ | ???#! #???????????????????????????? | | ???##! %####+######???????????????????????????? | | ????#### #? T ???????????????????????????????? | | ???????# # #??????????????????????????????? | | ???????# # """ #??????????????????????????????? | | ???????# # """ #??????????????????????????????? | | ???????# # """ #??????????????????????????????? | | ???????# # #??????????????????????????????? | | ???????# ########??????????????????????????????? | | ???????# #?????????????????????????????????????? | | ???????# #?????????????????????????????????????? | | ???????# #?????????????????????????????????????? | | ???????# #??#######????????????????????????????? | | ???????# #### #????????????????????????????? | | ???????# #????????? ??????????????????? | | [= "" ## #???????? ???????????????????? | | =* T" + #??????? ??????????????????? | | "" ###+##### #??????# ##????????????????? | | ???????? ???## ######## ???????????????? | | ???????? ????# ???????????????? | | ??????? ???# ???????????????? | | ??????? ???# ???????????????? | | ??????# ??# """" """" """????????????????? | | ??????# ??# ="""" """" """"???????????????? | | ??????# #?#=%"""" """" """" ""???????????? | | ??????# #?# @ g ????????? | | ??????# #?# ????????? | | ??????# + ????????? | | ??????# ######;##################+#?????????? | | ??????# #??? ??????????????????????????????? | | ??????# #??#????????????????????????????????? | | ???????#####?????????????????????????????????????? | | ?????????????????????????????????????????????????? | | ?????????????????????????????????????????????????? | | ?????????????????????????????????????????????????? | | ?????????????????????????????????????????????????? | | ?????????????????????????????????????????????????? | | ?????????????????????????????????????????????????? | | ?????????????????????????????????????????????????? | | ?????????????????????????????????????????????????? | | ?????????????????????????????????????????????????? | | ?????????????????????????????????????????????????? | | | | | | | | | | | | | | | | | +----------------------------------------------------+ Best States ------------- Heat Dissipation 25 Energy Generation 10 Energy Capacity 250 Matter Stores 300 Matter Capacity 300 Sight Range 16 Terrain Scan Density 10 Evasion (%) 40 Recoil Reduction 2 Item Schematics ----------------- None Robot Schematics ------------------ None Fabricated ------------ Nothing Repaired ---------- Nothing Studied --------- None Alien Tech Used ----------------- None Achievements -------------- None Challenges ------------ None Game ------ Seed ThunderSurveybotSpecial Manual? 0 Play Time 00:06:48 Cumulative 216.6 hours Start 2026.09.24 @ 23:28:42 End 2026.09.24 @ 23:32:59 Sessions 1 Manual Loads 0 Difficulty Rogue Special Mode None Game No. 40 Rogue 24 Adventurer 2 Explorer 14 Win Type - Total 7 Types 4/0/1/0/0/0/0/0/0/2 Lore% 53 Gallery% 51 Achievement% 52 Wizard Run 0 Options --------- Layout 0 ASCII 0 Keyboard 0 Movement Mouse Keybinds 0 Fullscreen 1 Font 18/Cog Map View 76x50 Zoom Use 0% Tactical HUD 1 Map Filters NONE Filters NONE Steam 1 RUN: bc5ddc11-6f26-45f0-b9c5-a5afe08d47bd